[Event "Titled Tuesday Blitz July 25 Early 2023"]
[White "Rios Escobar, Adan"]
[Black "Volovich, Vasily"]
[WhiteFideId "3403645"]
[BlackFideId "34169676"]
[WhiteElo "2404"]
[BlackElo "2741"]
[Result "1/2-1/2"]
[Round "1"]
[TimeControl "180+2"]
[Date "2023.07.25"]
[WhiteClock "0:00:04"]
[BlackClock "0:00:05"]
[Board "103"]

1. d4 {[%clk 0:02:57]}  Nf6 {[%clk 0:02:57]} 2. g3 {[%clk 0:02:56]}  e6 {[%clk 0:02:56]} 3. c4 {[%clk 0:02:55]}  d5 {[%clk 0:02:55]} 4. Nf3 {[%clk 0:02:55]}  dxc4 {[%clk 0:02:55]} 5. Bg2 {[%clk 0:02:55]}  Nc6 {[%clk 0:02:54]} 6. Qa4 {[%clk 0:02:50]}  Bb4+ {[%clk 0:02:44]} 7. Bd2 {[%clk 0:02:42]}  Qd6 {[%clk 0:02:37]} 8. O-O {[%clk 0:02:37]}  O-O {[%clk 0:02:37]} 9. e3 {[%clk 0:02:17]}  a6 {[%clk 0:02:32]} 10. Qc2 {[%clk 0:01:47]}  Bxd2 {[%clk 0:02:12]} 11. Nfxd2 {[%clk 0:01:42]}  b5 {[%clk 0:02:08]} 12. b3 {[%clk 0:01:37]}  cxb3 {[%clk 0:01:53]} 13. Nxb3 {[%clk 0:01:38]}  Nb4 {[%clk 0:01:53]} 14. Qe2 {[%clk 0:01:20]}  Rb8 {[%clk 0:01:49]} 15. Nc5 {[%clk 0:01:12]}  Nd7 {[%clk 0:01:49]} 16. Ne4 {[%clk 0:01:03]}  Qe7 {[%clk 0:01:48]} 17. Rc1 {[%clk 0:01:02]}  Bb7 {[%clk 0:01:33]} 18. Rxc7 {[%clk 0:00:55]}  Rfc8 {[%clk 0:01:33]} 19. Rxc8+ {[%clk 0:00:54]}  Rxc8 {[%clk 0:01:33]} 20. Nbd2 {[%clk 0:00:51]}  Bxe4 {[%clk 0:01:16]} 21. Nxe4 {[%clk 0:00:50]}  Nd5 {[%clk 0:01:11]} 22. Qd2 {[%clk 0:00:47]}  Qa3 {[%clk 0:01:03]} 23. h4 {[%clk 0:00:40]}  b4 {[%clk 0:00:57]} 24. Rb1 {[%clk 0:00:34]}  Nc3 {[%clk 0:00:55]} 25. Rb3 {[%clk 0:00:27]}  Qxa2 {[%clk 0:00:44]} 26. Rxb4 {[%clk 0:00:28]}  Qxd2 {[%clk 0:00:23]} 27. Nxd2 {[%clk 0:00:29]}  a5 {[%clk 0:00:23]} 28. Rb7 {[%clk 0:00:27]}  Nf6 {[%clk 0:00:23]} 29. Ra7 {[%clk 0:00:22]}  a4 {[%clk 0:00:23]} 30. Bf3 {[%clk 0:00:22]}  g6 {[%clk 0:00:20]} 31. Kg2 {[%clk 0:00:18]}  Rb8 {[%clk 0:00:20]} 32. Nc4 {[%clk 0:00:15]}  Nfd5 {[%clk 0:00:12]} 33. Bxd5 {[%clk 0:00:14]}  exd5 {[%clk 0:00:12]} 34. Ne5 {[%clk 0:00:15]}  Rb2 {[%clk 0:00:06]} 35. Nxf7 {[%clk 0:00:13]}  Nd1 {[%clk 0:00:04]} 36. Nh6+ {[%clk 0:00:08]}  Kh8 {[%clk 0:00:05]} 37. g4 {[%clk 0:00:04]}  Rxf2+ {[%clk 0:00:04]} 38. Kg3 {[%clk 0:00:04]}  Rf8 {[%clk 0:00:03]} 39. g5 {[%clk 0:00:03]}  Nxe3 {[%clk 0:00:04]} 40. Rxa4 {[%clk 0:00:03]}  Nf5+ {[%clk 0:00:03]} 41. Kg4 {[%clk 0:00:01]}  Nxh6+ {[%clk 0:00:03]} 42. gxh6 {[%clk 0:00:02]}  Re8 {[%clk 0:00:04]} 43. Ra5 {[%clk 0:00:01]}  Re4+ {[%clk 0:00:02]} 44. Kg5 {[%clk 0:00:01]}  Kg8 {[%clk 0:00:03]} 45. Ra7 {[%clk 0:00:01]}  Rxd4 {[%clk 0:00:03]} 46. Rg7+ {[%clk 0:00:02]}  Kh8 {[%clk 0:00:03]} 47. Rf7 {[%clk 0:00:03]}  Kg8 {[%clk 0:00:04]} 48. Rg7+ {[%clk 0:00:03]}  Kh8 {[%clk 0:00:04]} 49. Rf7 {[%clk 0:00:03]}  Kg8 {[%clk 0:00:05]} 50. Rg7+ {[%clk 0:00:04]} 1/2-1/2


[Site "https://www.chess.com"]

[Event "Titled Tuesday Blitz July 25 Early 2023"]
[White "Zubritskiy, Artyom"]
[Black "Marn, Jan"]
[WhiteFideId "4181247"]
[BlackFideId "14619245"]
[WhiteElo "2739"]
[BlackElo "2404"]
[Result "1-0"]
[Round "1"]
[TimeControl "180+2"]
[Date "2023.07.25"]
[WhiteClock "0:00:07"]
[BlackClock "0:00:02"]
[Board "104"]

1. d4 {[%clk 0:02:58]}  e6 {[%clk 0:02:57]} 2. c4 {[%clk 0:02:58]}  f5 {[%clk 0:02:57]} 3. g3 {[%clk 0:02:59]}  Nf6 {[%clk 0:02:57]} 4. Bg2 {[%clk 0:02:59]}  Be7 {[%clk 0:02:57]} 5. Nf3 {[%clk 0:03:00]}  O-O {[%clk 0:02:57]} 6. O-O {[%clk 0:03:00]}  d6 {[%clk 0:02:58]} 7. b3 {[%clk 0:02:58]}  Nbd7 {[%clk 0:02:55]} 8. Bb2 {[%clk 0:02:59]}  Qe8 {[%clk 0:02:53]} 9. Nc3 {[%clk 0:02:55]}  Ne4 {[%clk 0:02:53]} 10. Nd2 {[%clk 0:02:14]}  Nxc3 {[%clk 0:02:44]} 11. Bxc3 {[%clk 0:02:15]}  e5 {[%clk 0:02:40]} 12. e3 {[%clk 0:01:54]}  a5 {[%clk 0:02:16]} 13. Qc2 {[%clk 0:01:43]}  f4 {[%clk 0:02:00]} 14. exf4 {[%clk 0:01:43]}  exf4 {[%clk 0:02:00]} 15. Rae1 {[%clk 0:01:39]}  Nf6 {[%clk 0:01:55]} 16. Ne4 {[%clk 0:01:02]}  Qh5 {[%clk 0:01:29]} 17. f3 {[%clk 0:00:57]}  Nxe4 {[%clk 0:01:07]} 18. g4 {[%clk 0:00:45]}  Qh6 {[%clk 0:00:34]} 19. Rxe4 {[%clk 0:00:38]}  Bh4 {[%clk 0:00:34]} 20. d5 {[%clk 0:00:23]}  Bd7 {[%clk 0:00:33]} 21. Qd2 {[%clk 0:00:22]}  Rae8 {[%clk 0:00:29]} 22. Rxe8 {[%clk 0:00:20]}  Rxe8 {[%clk 0:00:29]} 23. Bxa5 {[%clk 0:00:20]}  Bf6 {[%clk 0:00:16]} 24. Bxc7 {[%clk 0:00:17]}  Be5 {[%clk 0:00:11]} 25. Bb6 {[%clk 0:00:17]}  Qf6 {[%clk 0:00:03]} 26. Re1 {[%clk 0:00:10]}  Ra8 {[%clk 0:00:03]} 27. Re2 {[%clk 0:00:08]}  Bxg4 {[%clk 0:00:02]} 28. fxg4 {[%clk 0:00:06]}  f3 {[%clk 0:00:02]} 29. Rf2 {[%clk 0:00:07]}  Qh4 {[%clk 0:00:02]} 30. Bxf3 {[%clk 0:00:07]} 1-0


[Site "https://www.chess.com"]

[Event "Titled Tuesday Blitz July 25 Early 2023"]
[White "Hoffmann, Asa"]
[Black "splendidkid"]
[WhiteFideId "2001470"]
[WhiteElo "2403"]
[BlackElo "2738"]
[Result "1-0"]
[Round "1"]
[TimeControl "180+2"]
[Date "2023.07.25"]
[WhiteClock "0:00:11"]
[BlackClock "0:00:41"]
[Board "105"]

1. d4 {[%clk 0:02:53]}  Nf6 {[%clk 0:02:59]} 2. Bg5 {[%clk 0:02:48]}  Ne4 {[%clk 0:02:58]} 3. Bf4 {[%clk 0:02:48]}  c5 {[%clk 0:02:58]} 4. f3 {[%clk 0:02:48]}  Qa5+ {[%clk 0:02:57]} 5. c3 {[%clk 0:02:48]}  Nf6 {[%clk 0:02:57]} 6. d5 {[%clk 0:02:48]}  Qb6 {[%clk 0:02:58]} 7. e4 {[%clk 0:02:44]}  e6 {[%clk 0:02:33]} 8. Na3 {[%clk 0:02:39]}  exd5 {[%clk 0:02:23]} 9. exd5 {[%clk 0:02:38]}  d6 {[%clk 0:02:18]} 10. Nc4 {[%clk 0:02:34]}  Qc7 {[%clk 0:02:17]} 11. Qe2+ {[%clk 0:02:33]}  Kd8 {[%clk 0:02:17]} 12. O-O-O {[%clk 0:02:22]}  b5 {[%clk 0:02:14]} 13. Ne3 {[%clk 0:02:21]}  Ba6 {[%clk 0:02:10]} 14. Qf2 {[%clk 0:02:05]}  b4 {[%clk 0:01:58]} 15. c4 {[%clk 0:02:02]}  Nbd7 {[%clk 0:01:56]} 16. g4 {[%clk 0:01:54]}  g6 {[%clk 0:01:54]} 17. h4 {[%clk 0:01:52]}  h5 {[%clk 0:01:53]} 18. g5 {[%clk 0:01:52]}  Ne8 {[%clk 0:01:54]} 19. Bh3 {[%clk 0:01:47]}  Qa5 {[%clk 0:01:50]} 20. Kb1 {[%clk 0:01:45]}  b3 {[%clk 0:01:48]} 21. a3 {[%clk 0:01:41]}  Bg7 {[%clk 0:01:42]} 22. Ne2 {[%clk 0:01:24]}  Ne5 {[%clk 0:01:37]} 23. Bxe5 {[%clk 0:01:13]}  Bxe5 {[%clk 0:01:38]} 24. f4 {[%clk 0:01:09]}  Bg7 {[%clk 0:01:37]} 25. f5 {[%clk 0:01:09]}  Be5 {[%clk 0:01:37]} 26. fxg6 {[%clk 0:01:04]}  fxg6 {[%clk 0:01:38]} 27. Qf7 {[%clk 0:01:03]}  Qc7 {[%clk 0:01:32]} 28. Qxg6 {[%clk 0:00:54]}  Qh7 {[%clk 0:01:17]} 29. Qxh7 {[%clk 0:00:52]}  Rxh7 {[%clk 0:01:18]} 30. Rhf1 {[%clk 0:00:52]}  Kc7 {[%clk 0:01:17]} 31. Nf4 {[%clk 0:00:51]}  Kb6 {[%clk 0:01:13]} 32. Ne6 {[%clk 0:00:49]}  Nc7 {[%clk 0:01:13]} 33. Rd3 {[%clk 0:00:48]}  Nxe6 {[%clk 0:01:11]} 34. Rxb3+ {[%clk 0:00:48]}  Ka5 {[%clk 0:01:10]} 35. Bxe6 {[%clk 0:00:46]}  Ka4 {[%clk 0:01:10]} 36. Ka2 {[%clk 0:00:43]}  Bd4 {[%clk 0:01:09]} 37. Rc1 {[%clk 0:00:39]}  Rf8 {[%clk 0:01:06]} 38. Nf5 {[%clk 0:00:39]}  Be5 {[%clk 0:01:06]} 39. g6 {[%clk 0:00:38]}  Rc7 {[%clk 0:01:04]} 40. Re1 {[%clk 0:00:36]}  Rf6 {[%clk 0:00:55]} 41. Rxe5 {[%clk 0:00:35]}  dxe5 {[%clk 0:00:56]} 42. Rb8 {[%clk 0:00:27]}  Rxg6 {[%clk 0:00:55]} 43. b3+ {[%clk 0:00:27]}  Ka5 {[%clk 0:00:55]} 44. d6 {[%clk 0:00:24]}  Rg2+ {[%clk 0:00:47]} 45. Kb1 {[%clk 0:00:23]}  Rb7 {[%clk 0:00:47]} 46. Rxb7 {[%clk 0:00:17]}  Bxb7 {[%clk 0:00:48]} 47. d7 {[%clk 0:00:17]}  Rd2 {[%clk 0:00:48]} 48. Bd5 {[%clk 0:00:15]}  Bxd5 {[%clk 0:00:48]} 49. d8=Q+ {[%clk 0:00:14]}  Ka6 {[%clk 0:00:47]} 50. cxd5 {[%clk 0:00:13]}  Kb5 {[%clk 0:00:46]} 51. Nd6+ {[%clk 0:00:12]}  Ka6 {[%clk 0:00:42]} 52. Nc4 {[%clk 0:00:12]}  Rd4 {[%clk 0:00:41]} 53. d6 {[%clk 0:00:11]}  Kb5 {[%clk 0:00:41]} 54. Qd7+ {[%clk 0:00:11]}  Ka6 {[%clk 0:00:41]} 55. Qc6# {[%clk 0:00:11]} 1-0


[Site "https://www.chess.com"]

[Event "Titled Tuesday Blitz July 25 Early 2023"]
[White "Dehtiarov, Roman"]
[Black "Bueno, Alfeu Junior Varela"]
[WhiteFideId "14186640"]
[BlackFideId "2108879"]
[WhiteElo "2737"]
[BlackElo "2402"]
[Result "1-0"]
[Round "1"]
[TimeControl "180+2"]
[Date "2023.07.25"]
[WhiteClock "0:00:06"]
[BlackClock "0:00:13"]
[Board "106"]

1. c4 {[%clk 0:02:58]}  e5 {[%clk 0:03:00]} 2. g3 {[%clk 0:02:57]}  Nc6 {[%clk 0:03:00]} 3. Bg2 {[%clk 0:02:55]}  f5 {[%clk 0:03:01]} 4. Nc3 {[%clk 0:02:55]}  Nf6 {[%clk 0:03:01]} 5. e3 {[%clk 0:02:55]}  Bb4 {[%clk 0:03:02]} 6. Nge2 {[%clk 0:02:56]}  d6 {[%clk 0:03:02]} 7. a3 {[%clk 0:02:54]}  Bxc3 {[%clk 0:03:02]} 8. Nxc3 {[%clk 0:02:55]}  O-O {[%clk 0:03:03]} 9. O-O {[%clk 0:02:51]}  f4 {[%clk 0:03:03]} 10. d3 {[%clk 0:02:15]}  fxg3 {[%clk 0:02:42]} 11. fxg3 {[%clk 0:02:15]}  Bg4 {[%clk 0:02:40]} 12. Qe1 {[%clk 0:02:04]}  Qe8 {[%clk 0:02:35]} 13. Bd2 {[%clk 0:01:47]}  Qh5 {[%clk 0:02:29]} 14. Nd5 {[%clk 0:01:01]}  Nxd5 {[%clk 0:02:28]} 15. cxd5 {[%clk 0:01:01]}  Ne7 {[%clk 0:02:25]} 16. Rc1 {[%clk 0:01:01]}  c6 {[%clk 0:02:06]} 17. dxc6 {[%clk 0:00:56]}  bxc6 {[%clk 0:02:07]} 18. d4 {[%clk 0:00:35]}  Rxf1+ {[%clk 0:01:23]} 19. Qxf1 {[%clk 0:00:34]}  Be2 {[%clk 0:01:21]} 20. Qe1 {[%clk 0:00:24]}  Rf8 {[%clk 0:01:10]} 21. dxe5 {[%clk 0:00:20]}  dxe5 {[%clk 0:01:07]} 22. Bb4 {[%clk 0:00:18]}  Rf7 {[%clk 0:00:49]} 23. Bxe7 {[%clk 0:00:15]}  Rxe7 {[%clk 0:00:50]} 24. Rxc6 {[%clk 0:00:15]}  Qg4 {[%clk 0:00:23]} 25. h3 {[%clk 0:00:10]}  Qh5 {[%clk 0:00:20]} 26. Rc8+ {[%clk 0:00:10]}  Kf7 {[%clk 0:00:20]} 27. Qf2+ {[%clk 0:00:07]}  Ke6 {[%clk 0:00:17]} 28. g4 {[%clk 0:00:06]}  Bxg4 {[%clk 0:00:13]} 29. hxg4 {[%clk 0:00:07]}  Qxg4 {[%clk 0:00:14]} 30. Rc6+ {[%clk 0:00:07]}  Kd7 {[%clk 0:00:13]} 31. Qd2+ {[%clk 0:00:06]}  Ke8 {[%clk 0:00:13]} 32. Rc8+ {[%clk 0:00:07]}  Kf7 {[%clk 0:00:14]} 33. Qd5+ {[%clk 0:00:06]}  Kg6 {[%clk 0:00:13]} 34. Qe4+ {[%clk 0:00:06]}  Kh6 {[%clk 0:00:13]} 35. Qxg4 {[%clk 0:00:06]} 1-0


[Site "https://www.chess.com"]

[Event "Titled Tuesday Blitz July 25 Early 2023"]
[White "Bryakin, Mikhail"]
[Black "Miszler, Levente"]
[WhiteFideId "4165314"]
[BlackFideId "763276"]
[WhiteElo "2735"]
[BlackElo "2401"]
[Result "1-0"]
[Round "1"]
[TimeControl "180+2"]
[Date "2023.07.25"]
[WhiteClock "0:00:11"]
[BlackClock "0:00:27"]
[Board "108"]

1. e4 {[%clk 0:02:53]}  c5 {[%clk 0:02:58]} 2. Nf3 {[%clk 0:02:48]}  d6 {[%clk 0:02:58]} 3. d4 {[%clk 0:02:47]}  cxd4 {[%clk 0:02:58]} 4. Qxd4 {[%clk 0:02:46]}  Nc6 {[%clk 0:02:55]} 5. Qd3 {[%clk 0:02:46]}  g6 {[%clk 0:02:52]} 6. Nc3 {[%clk 0:02:45]}  Bg7 {[%clk 0:02:52]} 7. Be2 {[%clk 0:02:45]}  Nf6 {[%clk 0:02:52]} 8. O-O {[%clk 0:02:46]}  O-O {[%clk 0:02:52]} 9. Nd5 {[%clk 0:02:47]}  b6 {[%clk 0:02:36]} 10. c3 {[%clk 0:02:39]}  Bb7 {[%clk 0:02:35]} 11. Bg5 {[%clk 0:02:35]}  Ne5 {[%clk 0:02:13]} 12. Nxe5 {[%clk 0:02:22]}  dxe5 {[%clk 0:02:14]} 13. Bxf6 {[%clk 0:02:22]}  exf6 {[%clk 0:02:08]} 14. Rad1 {[%clk 0:02:21]}  Bxd5 {[%clk 0:02:07]} 15. Qxd5 {[%clk 0:02:16]}  Qxd5 {[%clk 0:02:07]} 16. Rxd5 {[%clk 0:02:16]}  Rfd8 {[%clk 0:02:07]} 17. Rfd1 {[%clk 0:02:16]}  Rxd5 {[%clk 0:02:03]} 18. Rxd5 {[%clk 0:02:16]}  Kf8 {[%clk 0:01:16]} 19. Bb5 {[%clk 0:02:14]}  a6 {[%clk 0:01:12]} 20. Bc6 {[%clk 0:02:10]}  Ra7 {[%clk 0:01:11]} 21. Rd8+ {[%clk 0:01:50]}  Ke7 {[%clk 0:01:10]} 22. Rb8 {[%clk 0:01:48]}  b5 {[%clk 0:01:09]} 23. g4 {[%clk 0:01:40]}  Bh6 {[%clk 0:01:02]} 24. Bd5 {[%clk 0:00:26]}  Bc1 {[%clk 0:01:00]} 25. b3 {[%clk 0:00:26]}  Bb2 {[%clk 0:00:50]} 26. c4 {[%clk 0:00:25]}  bxc4 {[%clk 0:00:50]} 27. bxc4 {[%clk 0:00:23]}  Bd4 {[%clk 0:00:50]} 28. Kf1 {[%clk 0:00:23]}  Rc7 {[%clk 0:00:45]} 29. h4 {[%clk 0:00:20]}  Rc5 {[%clk 0:00:45]} 30. Rb7+ {[%clk 0:00:20]}  Kd8 {[%clk 0:00:38]} 31. Rxf7 {[%clk 0:00:18]}  Ra5 {[%clk 0:00:39]} 32. Rxh7 {[%clk 0:00:13]}  Rxa2 {[%clk 0:00:38]} 33. h5 {[%clk 0:00:14]}  gxh5 {[%clk 0:00:37]} 34. gxh5 {[%clk 0:00:15]}  Rxf2+ {[%clk 0:00:38]} 35. Ke1 {[%clk 0:00:15]}  a5 {[%clk 0:00:34]} 36. Bc6 {[%clk 0:00:15]}  Rh2 {[%clk 0:00:33]} 37. Kd1 {[%clk 0:00:14]}  f5 {[%clk 0:00:27]} 38. exf5 {[%clk 0:00:14]}  e4 {[%clk 0:00:28]} 39. Rd7+ {[%clk 0:00:13]}  Kc8 {[%clk 0:00:27]} 40. Rxd4 {[%clk 0:00:13]}  Kc7 {[%clk 0:00:28]} 41. Bxe4 {[%clk 0:00:13]}  a4 {[%clk 0:00:28]} 42. Rd2 {[%clk 0:00:11]}  Rxh5 {[%clk 0:00:27]} 1-0


[Site "https://www.chess.com"]

[Event "Titled Tuesday Blitz July 25 Early 2023"]
[White "Stork, Oliver"]
[Black "Morefield, Jason"]
[WhiteFideId "12955728"]
[BlackFideId "30920825"]
[WhiteElo "2400"]
[BlackElo "2734"]
[Result "0-1"]
[Round "1"]
[TimeControl "180+2"]
[Date "2023.07.25"]
[WhiteClock "0:00:12"]
[BlackClock "0:01:11"]
[Board "109"]

1. c4 {[%clk 0:02:59]}  e5 {[%clk 0:02:57]} 2. Nc3 {[%clk 0:02:58]}  Nf6 {[%clk 0:02:57]} 3. g3 {[%clk 0:02:58]}  Bb4 {[%clk 0:02:52]} 4. Bg2 {[%clk 0:02:58]}  Bxc3 {[%clk 0:02:52]} 5. bxc3 {[%clk 0:02:59]}  O-O {[%clk 0:02:51]} 6. d3 {[%clk 0:02:58]}  d6 {[%clk 0:02:46]} 7. Nf3 {[%clk 0:02:58]}  e4 {[%clk 0:02:45]} 8. Nd4 {[%clk 0:02:36]}  exd3 {[%clk 0:02:38]} 9. exd3 {[%clk 0:02:25]}  Re8+ {[%clk 0:02:38]} 10. Be3 {[%clk 0:02:24]}  Ng4 {[%clk 0:02:36]} 11. O-O {[%clk 0:02:18]}  Rxe3 {[%clk 0:02:22]} 12. fxe3 {[%clk 0:02:18]}  Nxe3 {[%clk 0:02:23]} 13. Qf3 {[%clk 0:01:06]}  Nxf1 {[%clk 0:02:22]} 14. Rxf1 {[%clk 0:01:07]}  f6 {[%clk 0:02:18]} 15. Qd5+ {[%clk 0:01:03]}  Kh8 {[%clk 0:02:18]} 16. Re1 {[%clk 0:01:03]}  Nd7 {[%clk 0:02:02]} 17. Ne6 {[%clk 0:00:31]}  Qe7 {[%clk 0:02:00]} 18. Re4 {[%clk 0:00:28]}  Ne5 {[%clk 0:01:55]} 19. Nf4 {[%clk 0:00:28]}  c6 {[%clk 0:01:47]} 20. Qa5 {[%clk 0:00:25]}  Bf5 {[%clk 0:01:32]} 21. Re3 {[%clk 0:00:25]}  Qd7 {[%clk 0:01:23]} 22. Qb4 {[%clk 0:00:23]}  Re8 {[%clk 0:01:13]} 23. d4 {[%clk 0:00:24]}  Ng4 {[%clk 0:01:12]} 24. Rxe8+ {[%clk 0:00:23]}  Qxe8 {[%clk 0:01:13]} 25. h3 {[%clk 0:00:13]}  Qe1+ {[%clk 0:01:11]} 26. Bf1 {[%clk 0:00:12]}  Qf2+ {[%clk 0:01:11]} 0-1


[Site "https://www.chess.com"]

[Event "Titled Tuesday Blitz July 25 Early 2023"]
[White "Mika, Tomasz"]
[Black "Timmermans, Mark"]
[WhiteFideId "1132970"]
[BlackFideId "1026399"]
[WhiteElo "2392"]
[BlackElo "2731"]
[Result "0-1"]
[Round "1"]
[TimeControl "180+2"]
[Date "2023.07.25"]
[WhiteClock "0:00:05"]
[BlackClock "0:00:34"]
[Board "113"]

1. e4 {[%clk 0:03:00]}  e5 {[%clk 0:02:56]} 2. Nf3 {[%clk 0:03:00]}  Nc6 {[%clk 0:02:53]} 3. Bc4 {[%clk 0:03:00]}  Nf6 {[%clk 0:02:52]} 4. Ng5 {[%clk 0:02:51]}  Bc5 {[%clk 0:02:50]} 5. Bxf7+ {[%clk 0:02:40]}  Ke7 {[%clk 0:02:50]} 6. Bc4 {[%clk 0:02:30]}  Rf8 {[%clk 0:02:49]} 7. d3 {[%clk 0:02:24]}  h6 {[%clk 0:02:47]} 8. Nf3 {[%clk 0:02:18]}  d6 {[%clk 0:02:45]} 9. Be3 {[%clk 0:02:15]}  Bg4 {[%clk 0:02:38]} 10. Bxc5 {[%clk 0:02:12]}  dxc5 {[%clk 0:02:39]} 11. h3 {[%clk 0:02:12]}  Bh5 {[%clk 0:02:39]} 12. g4 {[%clk 0:02:10]}  Nxg4 {[%clk 0:02:39]} 13. Nh4 {[%clk 0:02:05]}  Qd4 {[%clk 0:02:15]} 14. Qd2 {[%clk 0:01:20]}  Rxf2 {[%clk 0:02:15]} 15. Nf5+ {[%clk 0:01:20]}  Rxf5 {[%clk 0:02:05]} 16. exf5 {[%clk 0:01:03]}  Ne3 {[%clk 0:02:01]} 17. Nc3 {[%clk 0:00:59]}  Qh4+ {[%clk 0:01:59]} 18. Qf2 {[%clk 0:00:53]}  Nxc2+ {[%clk 0:02:00]} 19. Kf1 {[%clk 0:00:52]}  Qxf2+ {[%clk 0:01:53]} 20. Kxf2 {[%clk 0:00:53]}  Nxa1 {[%clk 0:01:53]} 21. Rxa1 {[%clk 0:00:53]}  a6 {[%clk 0:01:48]} 22. Rg1 {[%clk 0:00:51]}  Kf8 {[%clk 0:01:43]} 23. Nd5 {[%clk 0:00:48]}  Rc8 {[%clk 0:01:30]} 24. a4 {[%clk 0:00:45]}  Bf7 {[%clk 0:01:28]} 25. f6 {[%clk 0:00:43]}  g5 {[%clk 0:01:27]} 26. h4 {[%clk 0:00:42]}  gxh4 {[%clk 0:01:15]} 27. Rg7 {[%clk 0:00:41]}  Na5 {[%clk 0:01:08]} 28. Ne7 {[%clk 0:00:26]}  Nxc4 {[%clk 0:00:50]} 29. Nxc8 {[%clk 0:00:24]}  Nxb2 {[%clk 0:00:51]} 30. Ke3 {[%clk 0:00:22]}  h3 {[%clk 0:00:46]} 31. Rg3 {[%clk 0:00:14]}  h2 {[%clk 0:00:44]} 32. Rh3 {[%clk 0:00:13]}  Nd1+ {[%clk 0:00:45]} 33. Ke2 {[%clk 0:00:12]}  Nc3+ {[%clk 0:00:45]} 34. Kd2 {[%clk 0:00:12]}  Nxa4 {[%clk 0:00:42]} 35. Rxh2 {[%clk 0:00:11]}  h5 {[%clk 0:00:42]} 36. Ne7 {[%clk 0:00:10]}  c4 {[%clk 0:00:37]} 37. Rg2 {[%clk 0:00:10]}  cxd3 {[%clk 0:00:36]} 38. Rg7 {[%clk 0:00:10]}  Nc5 {[%clk 0:00:35]} 39. Ke3 {[%clk 0:00:08]}  d2 {[%clk 0:00:35]} 40. Kxd2 {[%clk 0:00:07]}  Ne4+ {[%clk 0:00:35]} 41. Ke3 {[%clk 0:00:08]}  Nxf6 {[%clk 0:00:36]} 42. Nf5 {[%clk 0:00:08]}  Be6 {[%clk 0:00:33]} 43. Rg6 {[%clk 0:00:07]}  Ng4+ {[%clk 0:00:33]} 44. Ke4 {[%clk 0:00:07]}  Kf7 {[%clk 0:00:33]} 45. Rg7+ {[%clk 0:00:05]}  Kf6 {[%clk 0:00:34]} 46. Rxc7 {[%clk 0:00:05]}  Bxf5+ {[%clk 0:00:34]} 0-1


[Site "https://www.chess.com"]

[Event "Titled Tuesday Blitz July 25 Early 2023"]
[White "Csonka, Balazs"]
[Black "Astafurov, Arseniy"]
[WhiteFideId "742910"]
[BlackFideId "24175218"]
[WhiteElo "2729"]
[BlackElo "2391"]
[Result "1-0"]
[Round "1"]
[TimeControl "180+2"]
[Date "2023.07.25"]
[WhiteClock "0:00:03"]
[BlackClock "0:00:01"]
[Board "114"]

1. d4 {[%clk 0:03:00]}  Nf6 {[%clk 0:02:59]} 2. c4 {[%clk 0:02:59]}  c5 {[%clk 0:02:58]} 3. d5 {[%clk 0:02:48]}  b5 {[%clk 0:02:58]} 4. cxb5 {[%clk 0:02:47]}  a6 {[%clk 0:02:59]} 5. bxa6 {[%clk 0:02:46]}  g6 {[%clk 0:02:59]} 6. Nc3 {[%clk 0:02:46]}  Bg7 {[%clk 0:02:59]} 7. e4 {[%clk 0:02:46]}  O-O {[%clk 0:02:59]} 8. Be2 {[%clk 0:02:45]}  Qa5 {[%clk 0:02:44]} 9. Bd2 {[%clk 0:02:44]}  Bxa6 {[%clk 0:02:42]} 10. e5 {[%clk 0:02:45]}  Ne8 {[%clk 0:02:42]} 11. Nf3 {[%clk 0:02:30]}  Qb4 {[%clk 0:02:40]} 12. Rb1 {[%clk 0:02:05]}  d6 {[%clk 0:02:04]} 13. e6 {[%clk 0:01:57]}  fxe6 {[%clk 0:01:57]} 14. dxe6 {[%clk 0:01:48]}  Qg4 {[%clk 0:01:55]} 15. O-O {[%clk 0:01:24]}  Qxe6 {[%clk 0:01:50]} 16. Re1 {[%clk 0:01:18]}  Bxe2 {[%clk 0:01:43]} 17. Rxe2 {[%clk 0:01:18]}  Qf7 {[%clk 0:00:51]} 18. b4 {[%clk 0:01:16]}  cxb4 {[%clk 0:00:40]} 19. Rxb4 {[%clk 0:01:17]}  Nc6 {[%clk 0:00:41]} 20. Rf4 {[%clk 0:01:09]}  Nf6 {[%clk 0:00:29]} 21. Ng5 {[%clk 0:01:08]}  Qe8 {[%clk 0:00:28]} 22. Ne6 {[%clk 0:01:07]}  Ne5 {[%clk 0:00:23]} 23. Nxf8 {[%clk 0:00:52]}  Qxf8 {[%clk 0:00:23]} 24. Qb3+ {[%clk 0:00:37]}  Qf7 {[%clk 0:00:23]} 25. Qxf7+ {[%clk 0:00:32]}  Kxf7 {[%clk 0:00:24]} 26. Ra4 {[%clk 0:00:32]}  Rb8 {[%clk 0:00:20]} 27. h3 {[%clk 0:00:31]}  Rb7 {[%clk 0:00:20]} 28. Be3 {[%clk 0:00:26]}  h6 {[%clk 0:00:19]} 29. Ra7 {[%clk 0:00:25]}  Rb8 {[%clk 0:00:16]} 30. a4 {[%clk 0:00:24]}  Nc4 {[%clk 0:00:16]} 31. Nb5 {[%clk 0:00:23]}  Nd5 {[%clk 0:00:14]} 32. Bd2 {[%clk 0:00:12]}  Be5 {[%clk 0:00:13]} 33. Bxh6 {[%clk 0:00:12]}  Kf6 {[%clk 0:00:13]} 34. Bd2 {[%clk 0:00:11]}  g5 {[%clk 0:00:12]} 35. g3 {[%clk 0:00:12]}  Rc8 {[%clk 0:00:11]} 36. Kg2 {[%clk 0:00:12]}  Ncb6 {[%clk 0:00:09]} 37. Be3 {[%clk 0:00:09]}  Rc4 {[%clk 0:00:08]} 38. Bxb6 {[%clk 0:00:09]}  Nxb6 {[%clk 0:00:09]} 39. a5 {[%clk 0:00:09]}  Nd5 {[%clk 0:00:10]} 40. a6 {[%clk 0:00:09]}  Ra4 {[%clk 0:00:10]} 41. Ra8 {[%clk 0:00:09]}  Nb6 {[%clk 0:00:10]} 42. Ra7 {[%clk 0:00:05]}  Nd5 {[%clk 0:00:09]} 43. Rd2 {[%clk 0:00:06]}  Nb4 {[%clk 0:00:09]} 44. Nc7 {[%clk 0:00:04]}  Bc3 {[%clk 0:00:06]} 45. Nd5+ {[%clk 0:00:03]}  Nxd5 {[%clk 0:00:06]} 46. Rxd5 {[%clk 0:00:04]}  Ra2 {[%clk 0:00:06]} 47. Rd3 {[%clk 0:00:05]}  Bb4 {[%clk 0:00:06]} 48. Ra8 {[%clk 0:00:05]}  Bc5 {[%clk 0:00:06]} 49. Rf3+ {[%clk 0:00:04]}  Kg7 {[%clk 0:00:06]} 50. h4 {[%clk 0:00:05]}  g4 {[%clk 0:00:07]} 51. Rf4 {[%clk 0:00:05]}  e5 {[%clk 0:00:07]} 52. Rxg4+ {[%clk 0:00:05]}  Kf7 {[%clk 0:00:08]} 53. Kh3 {[%clk 0:00:05]}  Bxf2 {[%clk 0:00:06]} 54. h5 {[%clk 0:00:05]}  Bg1 {[%clk 0:00:07]} 55. Rgg8 {[%clk 0:00:04]}  d5 {[%clk 0:00:06]} 56. h6 {[%clk 0:00:04]}  Rh2+ {[%clk 0:00:06]} 57. Kg4 {[%clk 0:00:04]}  Rxh6 {[%clk 0:00:06]} 58. Rgf8+ {[%clk 0:00:03]}  Ke7 {[%clk 0:00:07]} 59. Rfe8+ {[%clk 0:00:03]}  Kd7 {[%clk 0:00:07]} 60. Rxe5 {[%clk 0:00:03]}  Rg6+ {[%clk 0:00:07]} 61. Kf3 {[%clk 0:00:02]}  Kd6 {[%clk 0:00:05]} 62. Re1 {[%clk 0:00:02]}  Bc5 {[%clk 0:00:04]} 63. a7 {[%clk 0:00:02]}  Rf6+ {[%clk 0:00:04]} 64. Kg4 {[%clk 0:00:02]}  Rg6+ {[%clk 0:00:04]} 65. Kh5 {[%clk 0:00:02]}  Bxa7 {[%clk 0:00:02]} 66. Rd8+ {[%clk 0:00:02]}  Kc7 {[%clk 0:00:02]} 67. Kxg6 {[%clk 0:00:03]}  Kxd8 {[%clk 0:00:03]} 68. Kf7 {[%clk 0:00:03]}  Kd7 {[%clk 0:00:02]} 69. Rd1 {[%clk 0:00:03]}  Kd6 {[%clk 0:00:02]} 70. g4 {[%clk 0:00:04]}  Be3 {[%clk 0:00:03]} 71. Kf6 {[%clk 0:00:03]}  Kc5 {[%clk 0:00:03]} 72. g5 {[%clk 0:00:02]}  d4 {[%clk 0:00:03]} 73. g6 {[%clk 0:00:03]}  Bh6 {[%clk 0:00:03]} 74. Rh1 {[%clk 0:00:03]}  Bf8 {[%clk 0:00:04]} 75. Kf7 {[%clk 0:00:03]}  d3 {[%clk 0:00:01]} 76. Kxf8 {[%clk 0:00:03]} 1-0


[Site "https://www.chess.com"]